fUST/lending_fUST_20250630
["ID","MTS","AMOUNT","RATE_DAILY","PERIOD"]
[368583189,1751215847102,-763.42,0.00019213,2]
[368583190,1751215847112,-1286.76,0.00019213,2]
[368583191,1751215847121,-867.17,0.00019213,2]
[368583192,1751215847130,-460.0,0.00019215,2]
[368583193,1751215847139,-460.0,0.00019215,2]
[368583194,1751215847149,-1132.72,0.00019215,2]
[368583195,1751215847158,-460.0,0.00019215,2]
[368583196,1751215847167,-4144.83784459,0.00019314,2]
[368583197,1751215847176,-60647.57789109,0.00019329,2]
[368583198,1751215847185,-712.87994142,0.0001937,2]
[368583199,1751215847194,-214.97967293,0.00019371,2]
[368583200,1751215847203,-160.0,0.00019371,2]
[368583201,1751215847212,-160.0,0.00019371,2]
[368583202,1751215847222,-837.1293463,0.00019371,2]
[368583203,1751215847231,-12567.05932091,0.00019371,2]
[368583204,1751215847240,-160.0,0.00019371,2]
[368583205,1751215847250,-160.0,0.00019371,2]
[368583206,1751215847258,-160.0,0.00019371,2]
[368583207,1751215847268,-213.82031328,0.00019371,2]
[368583208,1751215847277,-160.0,0.00019371,2]
[368583209,1751215847286,-230.30207649,0.00019371,2]
[368583210,1751215847295,-847.31290578,0.00019371,2]
[368583211,1751215847303,-160.0,0.00019371,2]
[368583212,1751215847313,-460.0,0.00019468,2]
[368583213,1751215847322,-460.0,0.00019468,2]
[368583214,1751215847331,-1044.81627693,0.00019468,2]
[368583215,1751215847341,-500.0,0.00019468,2]
[368583216,1751215847350,-500.0,0.00019468,2]
[368583217,1751215847359,-1500.0,0.00019468,2]
[368583218,1751215847369,-519.76312072,0.00019468,2]
[368583219,1751215847379,-497.82897439,0.00019473,2]
[368583220,1751215847389,-460.0,0.00019483,2]
[368583221,1751215847398,-460.0,0.00019483,2]
[368583222,1751215847407,-1691.12,0.00019483,2]
[368583223,1751215847417,-460.0,0.00019483,2]
[368583224,1751215847426,-460.0,0.00019483,2]
[368583225,1751215847436,-2518.13,0.00019483,2]
[368583226,1751215847445,-460.0,0.00019484,2]
[368583227,1751215847455,-460.0,0.00019484,2]
[368583228,1751215847464,-460.0,0.00019484,2]
[368583229,1751215847474,-460.0,0.00019484,2]
[368583230,1751215847483,-2466.97,0.00019484,2]
[368583231,1751215847493,-516.73,0.00019484,2]
[368583232,1751215847502,-460.0,0.00019484,2]
[368583233,1751215847512,-460.0,0.00019484,2]
[368583234,1751215847521,-460.0,0.00019484,2]
[368583235,1751215847530,-2711.1,0.00019484,2]
[368583236,1751215847540,-2437.35,0.00019484,2]
[368583237,1751215847549,-550.98,0.00019484,2]
[368583238,1751215847559,-460.0,0.00019484,2]
[368583239,1751215847568,-2633.15,0.00019484,2]
[368583240,1751215847580,-460.0,0.00019484,2]
[368583241,1751215847590,-460.0,0.00019484,2]
[368583242,1751215847599,-829.51,0.00019484,2]
[368583243,1751215847608,-460.0,0.00019484,2]
[368583244,1751215847618,-1443.48,0.00019484,2]
[368583245,1751215847627,-460.0,0.00019484,2]
[368583246,1751215847637,-460.0,0.00019484,2]
[368583247,1751215847646,-460.0,0.00019484,2]
[368583248,1751215847655,-460.0,0.00019484,2]
[368583249,1751215847665,-460.0,0.00019484,2]
[368583250,1751215847674,-460.0,0.00019484,2]
[368583251,1751215847683,-1255.93,0.00019484,2]
[368583252,1751215847693,-460.0,0.00019484,2]
[368583253,1751215847702,-460.0,0.00019484,2]
[368583254,1751215847711,-460.0,0.00019484,2]
[368583255,1751215847720,-691.24,0.00019484,2]
[368583256,1751215847730,-460.0,0.00019484,2]
[368583257,1751215847739,-460.0,0.00019484,2]
[368583258,1751215847748,-580.78,0.00019484,2]
[368583259,1751215847757,-170.97784634,0.00019485,2]
[368583260,1751215847770,-889.24,0.00019485,2]
[368583261,1751215847779,-460.0,0.00019485,2]
[368583262,1751215847788,-460.0,0.00019485,2]
[368583263,1751215847797,-460.0,0.00019485,2]
[368583264,1751215847806,-460.0,0.00019485,2]
[368583265,1751215847816,-585.05,0.00019485,2]
[368583266,1751215847826,-460.0,0.00019485,2]
[368583267,1751215847835,-460.0,0.00019485,2]
[368583268,1751215847844,-3178.03,0.00019485,2]
[368583269,1751215847853,-460.0,0.00019485,2]
[368583270,1751215847862,-640.96,0.00019485,2]
[368583271,1751215847871,-1063.57,0.00019485,2]
[368583272,1751215847880,-460.0,0.00019485,2]
[368583273,1751215847889,-460.0,0.00019485,2]
[368583274,1751215847898,-703.44,0.00019485,2]
[368583275,1751215847907,-1251.33,0.00019485,2]
[368583276,1751215847917,-460.0,0.00019486,2]
[368583277,1751215847926,-460.0,0.00019486,2]
[368583278,1751215847935,-405.20263966,0.00019486,2]
[368583279,1751215847944,-460.0,0.00019486,2]
[368583280,1751215847954,-524.45,0.00019486,2]
[368583281,1751215847964,-546.38,0.00019486,2]
[368583282,1751215847973,-180.82526387,0.00019486,2]
[368583283,1751215847982,-460.0,0.00019486,2]
[368583284,1751215847990,-460.0,0.00019486,2]
[368583285,1751215847999,-460.0,0.00019486,2]
[368583286,1751215848009,-460.0,0.00019486,2]
[368583287,1751215848018,-4014.48,0.00019486,2]
[368583288,1751215848027,-460.0,0.00019486,2]
[368583289,1751215848036,-1201.4,0.00019486,2]
[368583290,1751215848046,-460.0,0.00019486,2]
[368583291,1751215848055,-460.0,0.00019486,2]
[368583292,1751215848064,-460.0,0.00019486,2]
[368583293,1751215848074,-460.0,0.00019487,2]
[368583294,1751215848083,-558.82,0.00019487,2]
[368583295,1751215848093,-460.0,0.00019487,2]
[368583296,1751215848102,-460.0,0.00019487,2]
[368583297,1751215848111,-915.56,0.00019487,2]
[368583298,1751215848120,-460.0,0.00019487,2]
[368583299,1751215848130,-460.0,0.00019487,2]
[368583300,1751215848272,-944.44,0.00019487,2]
[368583301,1751215848283,-2638.73,0.00019487,2]
[368583302,1751215848293,-460.0,0.00019487,2]
[368583303,1751215848303,-763.42,0.00019487,2]
[368583304,1751215848312,-1286.76,0.00019487,2]
[368583305,1751215848322,-867.17,0.00019487,2]
[368583306,1751215848332,-239.14511559,0.00019489,2]
[368583307,1751215848342,-460.0,0.00019489,2]
[368583308,1751215848351,-1132.72,0.00019489,2]
[368583309,1751215848360,-460.0,0.00019489,2]
[368583310,1751215848369,-4144.83784459,0.00019521,2]
[368583311,1751215848378,-151.0,0.000197,2]
[368583312,1751215848389,-4144.83784459,0.00019728,2]
[368583313,1751215848398,-460.0,0.00019742,2]
[368583314,1751215848407,-384.33000003,0.00019742,2]
[368583315,1751215848417,-1450.28,0.0001975,3]
[368583316,1751215848425,-725.14,0.0001975,3]
[368583317,1751215848436,-362.58,0.0001975,3]
[368583318,1751215848446,-460.0,0.00019757,2]
[368583319,1751215848455,-460.0,0.00019757,2]
[368583320,1751215848466,-1691.12,0.00019757,2]
[368583321,1751215848475,-460.0,0.00019757,2]
[368583322,1751215848485,-208.6682946,0.00019757,2]
[368583323,1751215848495,-2518.13,0.00019757,2]
[368583324,1751215848504,-460.0,0.00019758,2]
[368583325,1751215848513,-460.0,0.00019758,2]
[368583326,1751215848522,-2466.97,0.00019758,2]
[368583327,1751215848531,-516.73,0.00019758,2]
[368583328,1751215848540,-572.23470244,0.00019758,2]
[368583329,1751215848550,-460.0,0.00019758,2]
[368583330,1751215848559,-460.0,0.00019758,2]
[368583331,1751215848569,-2711.1,0.00019758,2]
[368583332,1751215848579,-2437.35,0.00019758,2]
[368583333,1751215848589,-550.98,0.00019758,2]
[368583334,1751215848600,-460.0,0.00019758,2]
[368583335,1751215848611,-2633.15,0.00019758,2]
[368583336,1751215848620,-460.0,0.00019758,2]
[368583337,1751215848630,-460.0,0.00019758,2]
[368583338,1751215848639,-829.51,0.00019758,2]
[368583339,1751215848649,-460.0,0.00019758,2]
[368583340,1751215848659,-1443.48,0.00019758,2]
[368583341,1751215848669,-460.0,0.00019758,2]
[368583342,1751215848679,-460.0,0.00019758,2]
[368583343,1751215848689,-340.4860667,0.00019758,2]
[368583344,1751215848699,-460.0,0.00019758,2]
[368583345,1751215848709,-460.0,0.00019758,2]
[368583346,1751215848720,-460.0,0.00019758,2]
[368583347,1751215848729,-1255.93,0.00019758,2]
[368583348,1751215848739,-460.0,0.00019758,2]
[368583349,1751215848749,-460.0,0.00019758,2]
[368583350,1751215848758,-460.0,0.00019758,2]
[368583351,1751215848771,-691.24,0.00019758,2]
[368583352,1751215848782,-460.0,0.00019758,2]
[368583353,1751215848791,-460.0,0.00019758,2]
[368583354,1751215848801,-580.78,0.00019758,2]
[368583355,1751215848810,-889.24,0.00019759,2]
[368583356,1751215848820,-460.0,0.00019759,2]
[368583357,1751215848830,-460.0,0.00019759,2]
[368583358,1751215848839,-460.0,0.00019759,2]
[368583359,1751215848851,-460.0,0.00019759,2]
[368583360,1751215848862,-585.05,0.00019759,2]
[368583361,1751215848872,-460.0,0.00019759,2]
[368583362,1751215848882,-460.0,0.00019759,2]
[368583363,1751215848892,-460.0,0.00019759,2]
[368583364,1751215848902,-3178.03,0.00019759,2]
[368583365,1751215848912,-640.96,0.00019759,2]
[368583366,1751215848923,-1063.57,0.00019759,2]
[368583367,1751215848933,-460.0,0.00019759,2]
[368583368,1751215848943,-460.0,0.00019759,2]
[368583369,1751215848953,-703.44,0.00019759,2]
[368583370,1751215848963,-1251.33,0.00019759,2]
[368583371,1751215848973,-460.0,0.0001976,2]
[368583372,1751215848983,-460.0,0.0001976,2]
[368583373,1751215848992,-460.0,0.0001976,2]
[368583374,1751215849002,-524.45,0.0001976,2]
[368583375,1751215849012,-546.38,0.0001976,2]
[368583376,1751215849023,-460.0,0.0001976,2]
[368583377,1751215849033,-460.0,0.0001976,2]
[368583378,1751215849043,-460.0,0.0001976,2]
[368583379,1751215849054,-4014.48,0.0001976,2]
[368583380,1751215849064,-460.0,0.0001976,2]
[368583381,1751215849074,-1201.4,0.0001976,2]
[368583382,1751215849084,-460.0,0.0001976,2]
[368583383,1751215849093,-460.0,0.0001976,2]
[368583384,1751215849103,-460.0,0.0001976,2]
[368583385,1751215849113,-460.0,0.00019761,2]
[368583386,1751215849122,-558.82,0.00019761,2]
[368583387,1751215849132,-460.0,0.00019761,2]
[368583388,1751215849142,-915.56,0.00019761,2]
[368583389,1751215849153,-460.0,0.00019761,2]
[368583390,1751215849163,-460.0,0.00019761,2]
[368583391,1751215849172,-944.44,0.00019761,2]
[368583392,1751215849182,-2638.73,0.00019761,2]
[368583393,1751215849192,-460.0,0.00019761,2]
[368583394,1751215849202,-763.42,0.00019761,2]
[368583395,1751215849211,-1286.76,0.00019761,2]
[368583396,1751215849221,-867.17,0.00019761,2]
[368583397,1751215849231,-460.0,0.00019763,2]
[368583398,1751215849242,-1132.72,0.00019763,2]
[368583399,1751215849252,-460.0,0.00019763,2]
[368583400,1751215849261,-151.0,0.000198,2]
[368583401,1751215849271,-151.0,0.000198,2]
[368583402,1751215849281,-215.0738,0.00019803,2]
[368583403,1751215849290,-1036.0,0.000199,2]
[368583404,1751215849300,-712.87994142,0.00019908,2]
[368583405,1751215849310,-4144.83784459,0.00019934,2]
[368583406,1751215849320,-500.0,0.00019999,2]
[368583407,1751215849331,-500.0,0.00019999,2]
[368583408,1751215849340,-600.9269693,0.00019999,2]
[368583409,1751215849351,-500.0,0.00019999,2]
[368583410,1751215849361,-500.0,0.00019999,2]
[368583411,1751215849371,-600.9269693,0.00019999,2]
[368583412,1751215849382,-500.0,0.00019999,2]
[368583413,1751215849393,-600.9269693,0.00019999,2]
[368583414,1751215849403,-500.0,0.00019999,2]
[368583415,1751215849413,-600.9269693,0.00019999,2]
[368583416,1751215849422,-600.9269693,0.00019999,2]
[368583417,1751215849431,-600.9269693,0.00019999,2]
[368583418,1751215849440,-600.9269693,0.00019999,2]
[368583419,1751215849450,-500.0,0.00019999,2]
[368583420,1751215849459,-600.9269693,0.00019999,2]
[368583421,1751215849468,-600.9269693,0.00019999,2]
[368583422,1751215849478,-600.9269693,0.00019999,2]
[368583423,1751215849487,-500.0,0.00019999,2]
[368583424,1751215849496,-500.0,0.00019999,2]
[368583425,1751215849506,-500.0,0.00019999,2]
[368583426,1751215849515,-500.0,0.00019999,2]
[368583427,1751215849525,-600.9269693,0.00019999,2]
[368583428,1751215849534,-500.0,0.00019999,2]
[368583429,1751215849543,-500.0,0.00019999,2]
[368583430,1751215849553,-600.9269693,0.00019999,2]
[368583431,1751215849562,-600.9269693,0.00019999,2]
[368583432,1751215849572,-500.0,0.00019999,2]
[368583433,1751215849582,-353.73534335,0.00019999,2]
[368583434,1751215849592,-500.0,0.00019999,2]
[368583435,1751215849601,-500.0,0.00019999,2]
[368583436,1751215849611,-500.0,0.00019999,2]
[368583437,1751215849620,-174.80453577,0.00019999,2]
[368583438,1751215849629,-600.9269693,0.00019999,2]
[368583439,1751215849639,-500.0,0.00019999,2]
[368583440,1751215849648,-500.0,0.00019999,2]
[368583441,1751215849657,-500.0,0.00019999,2]
[368583442,1751215849666,-500.0,0.00019999,2]
[368583443,1751215849676,-600.9269693,0.00019999,2]
[368583444,1751215849685,-600.9269693,0.00019999,2]
[368583445,1751215849695,-600.9269693,0.00019999,2]
[368583446,1751215849704,-600.9269693,0.00019999,2]
[368583447,1751215849713,-500.0,0.00019999,2]
[368583448,1751215849723,-600.9269693,0.00019999,2]
[368583449,1751215849732,-600.9269693,0.00019999,2]
[368583450,1751215849741,-500.0,0.00019999,2]
[368583451,1751215849751,-600.9269693,0.00019999,2]
[368583452,1751215849761,-600.9269693,0.00019999,2]
[368583453,1751215849775,-500.0,0.00019999,2]
[368583454,1751215849784,-401.69513727,0.00019999,2]
[368583455,1751215849794,-600.9269693,0.00019999,2]
[368583456,1751215849804,-600.9269693,0.00019999,2]
[368583457,1751215849814,-500.0,0.00019999,2]
[368583458,1751215849824,-500.0,0.00019999,2]
[368583459,1751215849834,-500.0,0.00019999,2]
[368583460,1751215849843,-3160.43072745,0.00019999,2]
[368583461,1751215849853,-3160.43072745,0.00019999,2]
[368583462,1751215849862,-3160.43072745,0.00019999,2]
[368583463,1751215849871,-300.0,0.00019999,2]
[368583464,1751215849880,-3160.43072745,0.00019999,2]
[368583465,1751215849890,-3160.43072745,0.00019999,2]
[368583466,1751215849899,-500.0,0.00019999,2]
[368583467,1751215849908,-3160.43072745,0.00019999,2]
[368583468,1751215849918,-500.0,0.00019999,2]
[368583469,1751215849927,-500.0,0.00019999,2]
[368583470,1751215849937,-197092.39137574,0.0002,3]
[368583471,1751215849947,-300.0,0.0002,2]
[368583472,1751215849956,-847.31290578,0.0002,3]
[368583473,1751215849966,-213.82031328,0.0002,3]
[368583474,1751215849975,-160.0,0.0002,3]
[368583475,1751215849984,-318.32956325,0.00020016,2]
[368583476,1751215849993,-2000.0,0.00020016,2]
[368583477,1751215850003,-460.0,0.00020031,2]
[368583478,1751215850012,-460.0,0.00020031,2]
[368583479,1751215850022,-1691.12,0.00020031,2]
[368583480,1751215850031,-460.0,0.00020031,2]
[368583481,1751215850041,-2518.13,0.00020031,2]
[368583482,1751215850051,-460.0,0.00020032,2]
[368583483,1751215850061,-460.0,0.00020032,2]
[368583484,1751215850071,-2466.97,0.00020032,2]
[368583485,1751215850080,-516.73,0.00020032,2]
[368583486,1751215850090,-460.0,0.00020032,2]
[368583487,1751215850099,-460.0,0.00020032,2]
[368583488,1751215850109,-2711.1,0.00020032,2]
[368583489,1751215850118,-2437.35,0.00020032,2]
[368583490,1751215850127,-550.98,0.00020032,2]
[368583491,1751215850137,-460.0,0.00020032,2]
[368583492,1751215850147,-2633.15,0.00020032,2]
[368583493,1751215850156,-460.0,0.00020032,2]
[368583494,1751215850166,-460.0,0.00020032,2]
[368583495,1751215850175,-829.51,0.00020032,2]
[368583496,1751215850185,-460.0,0.00020032,2]
[368583497,1751215850195,-1443.48,0.00020032,2]
[368583498,1751215850204,-460.0,0.00020032,2]
[368583499,1751215850214,-460.0,0.00020032,2]
[368583500,1751215850223,-460.0,0.00020032,2]
[368583501,1751215850233,-460.0,0.00020032,2]
[368583502,1751215850243,-460.0,0.00020032,2]
[368583503,1751215850253,-1255.93,0.00020032,2]
[368583504,1751215850262,-460.0,0.00020032,2]
[368583505,1751215850272,-566.37629393,0.00020032,2]
[368583506,1751215850281,-460.0,0.00020032,2]
[368583507,1751215850290,-691.24,0.00020032,2]
[368583508,1751215850300,-460.0,0.00020032,2]
[368583509,1751215850309,-460.0,0.00020032,2]
[368583510,1751215850319,-580.78,0.00020032,2]
[368583511,1751215850329,-889.24,0.00020033,2]
[368583512,1751215850338,-460.0,0.00020033,2]
[368583513,1751215850347,-460.0,0.00020033,2]
[368583514,1751215850357,-460.0,0.00020033,2]
[368583515,1751215850367,-460.0,0.00020033,2]
[368583516,1751215850376,-585.05,0.00020033,2]
[368583517,1751215850386,-460.0,0.00020033,2]
[368583518,1751215850395,-460.0,0.00020033,2]
[368583519,1751215850404,-460.0,0.00020033,2]
[368583520,1751215850414,-3178.03,0.00020033,2]
[368583521,1751215850423,-640.96,0.00020033,2]
[368583522,1751215850433,-1063.57,0.00020033,2]
[368583523,1751215850442,-460.0,0.00020033,2]
[368583524,1751215850451,-460.0,0.00020033,2]
[368583525,1751215850461,-703.44,0.00020033,2]
[368583526,1751215850471,-1251.33,0.00020033,2]
[368583527,1751215850480,-460.0,0.00020034,2]
[368583528,1751215850489,-460.0,0.00020034,2]
[368583529,1751215850498,-524.45,0.00020034,2]
[368583530,1751215850507,-546.38,0.00020034,2]
[368583531,1751215850516,-460.0,0.00020034,2]
[368583532,1751215850526,-460.0,0.00020034,2]
[368583533,1751215850535,-460.0,0.00020034,2]
[368583534,1751215850545,-4014.48,0.00020034,2]
[368583535,1751215850554,-460.0,0.00020034,2]
[368583536,1751215850563,-1201.4,0.00020034,2]
[368583537,1751215850572,-283.28565185,0.00020034,2]
[368583538,1751215850582,-460.0,0.00020034,2]
[368583539,1751215850592,-460.0,0.00020034,2]
[368583540,1751215850602,-460.0,0.00020035,2]
[368583541,1751215850611,-558.82,0.00020035,2]
[368583542,1751215850619,-460.0,0.00020035,2]
[368583543,1751215850629,-915.56,0.00020035,2]
[368583544,1751215850638,-460.0,0.00020035,2]
[368583545,1751215850648,-460.0,0.00020035,2]
[368583546,1751215850658,-944.44,0.00020035,2]
[368583547,1751215850700,-2638.73,0.00020035,2]
[368583548,1751215850710,-460.0,0.00020035,2]
[368583549,1751215850720,-763.42,0.00020035,2]
[368583550,1751215850729,-1286.76,0.00020035,2]
[368583551,1751215850739,-867.17,0.00020035,2]
[368583552,1751215850748,-460.0,0.00020037,2]
[368583553,1751215850757,-1132.72,0.00020037,2]
[368583554,1751215850767,-460.0,0.00020037,2]
[368583555,1751215850778,-420.0,0.00020037,2]
[368583556,1751215850787,-1044.26898975,0.00020081,2]
[368583557,1751215850797,-4144.83784459,0.00020141,2]
[368583558,1751215850806,-248.616793,0.00020187,2]
[368583559,1751215850815,-500.0,0.0002026,2]
[368583560,1751215850825,-2637.82,0.00020298,2]
[368583561,1751215850835,-151.0,0.000203,3]
[368583562,1751215850846,-460.0,0.00020305,2]
[368583563,1751215850856,-460.0,0.00020305,2]
[368583564,1751215850866,-1691.12,0.00020305,2]
[368583565,1751215850876,-460.0,0.00020305,2]
[368583566,1751215850885,-2518.13,0.00020305,2]
[368583567,1751215850895,-460.0,0.00020306,2]
[368583568,1751215850906,-460.0,0.00020306,2]
[368583569,1751215850915,-2466.97,0.00020306,2]
[368583570,1751215850925,-516.73,0.00020306,2]
[368583571,1751215850935,-460.0,0.00020306,2]
[368583572,1751215850944,-460.0,0.00020306,2]
[368583573,1751215850954,-2711.1,0.00020306,2]
[368583574,1751215850963,-2437.35,0.00020306,2]
[368583575,1751215850973,-550.98,0.00020306,2]
[368583576,1751215850982,-460.0,0.00020306,2]
[368583577,1751215850991,-2633.15,0.00020306,2]
[368583578,1751215851000,-460.0,0.00020306,2]
[368583579,1751215851009,-460.0,0.00020306,2]
[368583580,1751215851018,-829.51,0.00020306,2]
[368583581,1751215851028,-460.0,0.00020306,2]
[368583582,1751215851037,-1443.48,0.00020306,2]
[368583583,1751215851046,-477.24930591,0.00020306,2]
[368583584,1751215851055,-460.0,0.00020306,2]
[368583585,1751215851065,-460.0,0.00020306,2]
[368583586,1751215851074,-460.0,0.00020306,2]
[368583587,1751215851084,-460.0,0.00020306,2]
[368583588,1751215851094,-1255.93,0.00020306,2]
[368583589,1751215851103,-460.0,0.00020306,2]
[368583590,1751215851112,-460.0,0.00020306,2]
[368583591,1751215851121,-691.24,0.00020306,2]
[368583592,1751215851131,-460.0,0.00020306,2]
[368583593,1751215851140,-460.0,0.00020306,2]
[368583594,1751215851150,-580.78,0.00020306,2]
[368583595,1751215851159,-889.24,0.00020307,2]
[368583596,1751215851168,-460.0,0.00020307,2]
[368583597,1751215851177,-460.0,0.00020307,2]
[368583598,1751215851186,-460.0,0.00020307,2]
[368583599,1751215851196,-258.86,0.00020307,2]
[368583600,1751215851205,-585.05,0.00020307,2]
[368583601,1751215851214,-460.0,0.00020307,2]
[368583602,1751215851223,-377.28972154,0.00020307,2]
[368583603,1751215851232,-460.0,0.00020307,2]
[368583604,1751215851241,-3178.03,0.00020307,2]
[368583605,1751215851250,-640.96,0.00020307,2]
[368583606,1751215851260,-1063.57,0.00020307,2]
[368583607,1751215851269,-460.0,0.00020307,2]
[368583608,1751215851278,-460.0,0.00020307,2]
[368583609,1751215851287,-703.44,0.00020307,2]
[368583610,1751215851298,-1251.33,0.00020307,2]
[368583611,1751215851307,-460.0,0.00020308,2]
[368583612,1751215851316,-460.0,0.00020308,2]
[368583613,1751215851326,-524.45,0.00020308,2]
[368583614,1751215851335,-546.38,0.00020308,2]
[368583615,1751215851344,-460.0,0.00020308,2]
[368583616,1751215851353,-460.0,0.00020308,2]
[368583617,1751215851363,-460.0,0.00020308,2]
[368583618,1751215851372,-4014.48,0.00020308,2]
[368583619,1751215851381,-460.0,0.00020308,2]
[368583620,1751215851390,-1201.4,0.00020308,2]
[368583621,1751215851399,-460.0,0.00020308,2]
[368583622,1751215851409,-460.0,0.00020308,2]
[368583623,1751215851418,-460.0,0.00020309,2]
[368583624,1751215851427,-558.82,0.00020309,2]
[368583625,1751215851436,-250.72008309,0.00020309,2]
[368583626,1751215851445,-915.56,0.00020309,2]
[368583627,1751215851454,-180.74785089,0.00020309,2]
[368583628,1751215851463,-460.0,0.00020309,2]
[368583629,1751215851473,-944.44,0.00020309,2]
[368583630,1751215851482,-2638.73,0.00020309,2]
[368583631,1751215851491,-460.0,0.00020309,2]
[368583632,1751215851501,-763.42,0.00020309,2]
[368583633,1751215851510,-1286.76,0.00020309,2]
[368583634,1751215851519,-867.17,0.00020309,2]
[368583635,1751215851528,-460.0,0.00020311,2]
[368583636,1751215851537,-1132.72,0.00020311,2]
[368583637,1751215851547,-6000.0,0.00020342,2]
[368583638,1751215851556,-1490.0,0.00020343,2]
[368583639,1751215851565,-4144.83784459,0.00020348,3]
[368583640,1751215851574,-10000.0,0.00020392,2]
[368583641,1751215851584,-12000.0,0.00020421,2]
[368583642,1751215851594,-712.87994142,0.00020447,2]
[368583643,1751215851603,-1490.0,0.00020454,2]
[368583644,1751215851612,-9000.0,0.00020462,2]
[368583645,1751215851622,-7000.0,0.00020498,2]
[368583646,1751215851632,-966.0,0.00020547,2]
[368583647,1751215851641,-2150.0,0.00020547,2]
[368583648,1751215851650,-644.0,0.00020547,2]
[368583649,1751215851659,-500.0,0.00020547,14]
[368583650,1751215851668,-4144.83784459,0.00020555,3]
[368583651,1751215851677,-500.0,0.00020562,2]
[368583652,1751215851687,-417.31908353,0.00020562,2]
[368583653,1751215851696,-500.0,0.00020562,2]
[368583654,1751215851705,-500.0,0.00020562,2]
[368583655,1751215851715,-500.0,0.00020562,2]
[368583656,1751215851724,-167.42421113,0.00020562,2]
[368583657,1751215851734,-500.0,0.00020562,2]
[368583658,1751215851744,-359.60088653,0.00020562,2]
[368583659,1751215851753,-500.0,0.00020562,2]
[368583660,1751215851764,-500.0,0.00020562,2]
[368583661,1751215851780,-500.0,0.00020562,2]
[368583662,1751215851792,-600.0,0.00020562,2]
[368583663,1751215851801,-153.28155438,0.00020562,2]
[368583664,1751215851810,-500.0,0.00020562,2]
[368583665,1751215851819,-500.0,0.00020562,2]
[368583666,1751215851829,-500.0,0.00020562,2]
[368583667,1751215851838,-500.0,0.00020562,2]
[368583668,1751215851848,-234.40001497,0.00020564,2]
[368583669,1751215851857,-460.0,0.00020579,2]
[368583670,1751215851867,-460.0,0.00020579,2]
[368583671,1751215851877,-1691.12,0.00020579,2]
[368583672,1751215851887,-460.0,0.00020579,2]
[368583673,1751215851897,-2518.13,0.00020579,2]
[368583674,1751215851906,-460.0,0.0002058,2]
[368583675,1751215851915,-460.0,0.0002058,2]
[368583676,1751215851925,-2466.97,0.0002058,2]
[368583677,1751215851935,-516.73,0.0002058,2]
[368583678,1751215851945,-460.0,0.0002058,2]
[368583679,1751215851954,-460.0,0.0002058,2]
[368583680,1751215851964,-2711.1,0.0002058,2]
[368583681,1751215851974,-2437.35,0.0002058,2]
[368583682,1751215851983,-550.98,0.0002058,2]
[368583683,1751215851992,-460.0,0.0002058,2]
[368583684,1751215852001,-2633.15,0.0002058,2]
[368583685,1751215852010,-460.0,0.0002058,2]
[368583686,1751215852019,-460.0,0.0002058,2]
[368583687,1751215852028,-829.51,0.0002058,2]
[368583688,1751215852037,-460.0,0.0002058,2]